fUST/lending_fUST_20250624
["ID","MTS","AMOUNT","RATE_DAILY","PERIOD"]
[367245963,1750713077197,-153.0,0.00023639,2]
[367245964,1750713077207,-153.0,0.00023639,2]
[367245965,1750713077216,-153.0,0.00023639,2]
[367245966,1750713077226,-153.0,0.00023639,2]
[367245967,1750713077236,-153.0,0.00023639,2]
[367245968,1750713077246,-153.0,0.00023639,2]
[367245969,1750713077255,-153.0,0.00023639,2]
[367245970,1750713077265,-669.7,0.00023651,5]
[367245971,1750713077275,-4500.0,0.00023656,2]
[367245972,1750713077284,-25000.00000001,0.0002366,2]
[367245973,1750713077294,-640.14613512,0.00023669,3]
[367245974,1750713077304,-1000.0,0.00023682,10]
[367245975,1750713077313,-13556.97820147,0.0002369,2]
[367245976,1750713077323,-160.0,0.000237,3]
[367245977,1750713077332,-846.53928378,0.000237,3]
[367245978,1750713077342,-230.18214666,0.000237,3]
[367245979,1750713077353,-988.6726062,0.00023753,3]
[367245980,1750713077363,-3758.27849114,0.00023762,9]
[367245981,1750713077372,-1032.578844,0.0002378,5]
[367245982,1750713077382,-1717.861544,0.0002378,5]
[367245983,1750713077392,-238045.48832379,0.000238,5]
[367245984,1750713077402,-1000.0,0.000238,5]
[367245985,1750713077412,-1000.0,0.000238,5]
[367245986,1750713077422,-1000.0,0.0002382,5]
[367245987,1750713077432,-1000.0,0.0002382,5]
[367245988,1750713077442,-500.0,0.00023835,13]
[367245989,1750713077452,-8680.42014708,0.00023835,2]
[367245990,1750713077462,-1000.0,0.0002384,5]
[367245991,1750713077475,-1000.0,0.0002384,5]
[367245992,1750713077486,-1000.0,0.0002386,5]
[367245993,1750713077495,-1000.0,0.0002386,5]
[367245994,1750713077506,-1917.77,0.00023878,2]
[367245995,1750713077518,-1996.47,0.00023878,2]
[367245996,1750713077528,-1000.0,0.0002388,5]
[367245997,1750713077539,-1000.0,0.0002388,5]
[367245998,1750713077549,-2458.42,0.0002388,2]
[367245999,1750713077692,-768.95,0.0002388,2]
[367246000,1750713077703,-499.06,0.0002388,2]
[367246001,1750713077713,-1326.42,0.0002388,2]
[367246002,1750713077723,-1916.14,0.0002388,2]
[367246003,1750713077732,-2981.58,0.0002388,2]
[367246004,1750713077742,-561.49,0.0002388,2]
[367246005,1750713077751,-998.87,0.0002388,2]
[367246006,1750713077761,-746.54,0.0002388,2]
[367246007,1750713077770,-1197.46,0.0002388,2]
[367246008,1750713077780,-868.07,0.0002388,2]
[367246009,1750713077790,-608.93,0.0002388,2]
[367246010,1750713077801,-3607.91,0.0002388,2]
[367246011,1750713077811,-1233.5,0.0002388,2]
[367246012,1750713077821,-852.78,0.0002388,2]
[367246013,1750713077830,-811.33,0.0002388,2]
[367246014,1750713077840,-460.0,0.0002388,2]
[367246015,1750713077850,-555.63,0.00023887,2]
[367246016,1750713077859,-834.36,0.00023887,2]
[367246017,1750713077868,-460.0,0.00023887,2]
[367246018,1750713077877,-460.0,0.00023887,2]
[367246019,1750713077887,-460.0,0.00023887,2]
[367246020,1750713077896,-460.0,0.00023887,2]
[367246021,1750713077906,-460.0,0.00023887,2]
[367246022,1750713077915,-1007.44,0.00023887,2]
[367246023,1750713077925,-460.0,0.00023887,2]
[367246024,1750713077935,-778.84,0.00023887,2]
[367246025,1750713077945,-691.92,0.00023887,2]
[367246026,1750713077955,-681.31,0.00023887,2]
[367246027,1750713077964,-673.85,0.00023887,2]
[367246028,1750713077973,-688.21,0.00023887,2]
[367246029,1750713077983,-460.0,0.00023887,2]
[367246030,1750713077993,-460.0,0.00023887,2]
[367246031,1750713078003,-611.84,0.00023887,2]
[367246032,1750713078012,-1114.83,0.00023887,2]
[367246033,1750713078021,-872.33,0.00023887,2]
[367246034,1750713078031,-460.0,0.00023887,2]
[367246035,1750713078041,-648.26,0.00023887,2]
[367246036,1750713078050,-1112.93,0.00023887,2]
[367246037,1750713078059,-460.0,0.0002389,2]
[367246038,1750713078068,-460.0,0.0002389,2]
[367246039,1750713078078,-1763.36,0.0002389,2]
[367246040,1750713078087,-735.83,0.0002389,2]
[367246041,1750713078096,-6806.59,0.0002389,2]
[367246042,1750713078106,-1456.91,0.0002389,2]
[367246043,1750713078115,-1053.14,0.0002389,2]
[367246044,1750713078124,-799.06,0.0002389,2]
[367246045,1750713078134,-460.0,0.0002389,2]
[367246046,1750713078143,-1090.77,0.0002389,2]
[367246047,1750713078153,-938.86,0.0002389,2]
[367246048,1750713078162,-2416.82,0.0002389,2]
[367246049,1750713078173,-951.38,0.0002389,2]
[367246050,1750713078183,-564.51,0.0002389,2]
[367246051,1750713078192,-460.0,0.00023891,2]
[367246052,1750713078202,-460.0,0.00023891,2]
[367246053,1750713078211,-460.0,0.00023891,2]
[367246054,1750713078221,-638.1,0.00023891,2]
[367246055,1750713078230,-460.0,0.00023891,2]
[367246056,1750713078239,-741.03,0.00023891,2]
[367246057,1750713078248,-749.26,0.00023891,2]
[367246058,1750713078258,-526.39,0.00023891,2]
[367246059,1750713078268,-2964.55,0.00023891,2]
[367246060,1750713078276,-460.0,0.00023891,2]
[367246061,1750713078286,-2045.16,0.00023891,2]
[367246062,1750713078295,-476.44,0.00023891,2]
[367246063,1750713078304,-610.23,0.00023891,2]
[367246064,1750713078314,-3382.79,0.00023891,2]
[367246065,1750713078323,-588.75,0.00023891,2]
[367246066,1750713078333,-2795.99,0.00023891,2]
[367246067,1750713078343,-1238.41,0.00023891,2]
[367246068,1750713078353,-200.0,0.00023894,2]
[367246069,1750713078362,-757.95,0.00023894,2]
[367246070,1750713078371,-468.15,0.00023894,2]
[367246071,1750713078381,-472.41,0.00023894,2]
[367246072,1750713078390,-696.67,0.00023894,2]
[367246073,1750713078400,-632.2,0.00023894,2]
[367246074,1750713078409,-3717.91618391,0.000239,2]
[367246075,1750713078419,-3000.0,0.000239,2]
[367246076,1750713078429,-1000.0,0.000239,5]
[367246077,1750713078438,-1000.0,0.000239,5]
[367246078,1750713078447,-460.0,0.00023902,2]
[367246079,1750713078456,-460.0,0.00023903,2]
[367246080,1750713078466,-460.0,0.00023903,2]
[367246081,1750713078479,-3000.0,0.0002391,2]
[367246082,1750713078489,-195.74,0.00023919,2]
[367246083,1750713078497,-3000.0,0.0002392,2]
[367246084,1750713078507,-1000.0,0.0002392,5]
[367246085,1750713078517,-1000.0,0.0002392,5]
[367246086,1750713078527,-3000.0,0.0002393,2]
[367246087,1750713078536,-669.7,0.00023938,6]
[367246088,1750713078548,-2247989.00986277,0.0002394,7]
[367246089,1750713078558,-3000.0,0.0002394,2]
[367246090,1750713078568,-1000.0,0.0002394,5]
[367246091,1750713078577,-1000.0,0.0002394,5]
[367246092,1750713078587,-3000.0,0.0002395,2]
[367246093,1750713078596,-3000.0,0.0002396,2]
[367246094,1750713078606,-1000.0,0.0002396,5]
[367246095,1750713078615,-1000.0,0.0002396,5]
[367246096,1750713078625,-3000.0,0.0002397,2]
[367246097,1750713078635,-150.0,0.00023973,2]
[367246098,1750713078644,-3000.0,0.0002398,2]
[367246099,1750713078654,-1000.0,0.0002398,5]
[367246100,1750713078663,-1000.0,0.0002398,5]
[367246101,1750713078673,-3000.0,0.0002399,2]
[367246102,1750713078682,-2161.0,0.0002399,2]
[367246103,1750713078691,-654.0,0.0002399,2]
[367246104,1750713078701,-406.0,0.00023993,2]
[367246105,1750713078710,-406.0,0.00023993,2]
[367246106,1750713078720,-142.88698126,0.00024,14]
[367246107,1750713078899,-742.22120335,0.00024,14]
[367246108,1750713078908,-152.56303845,0.00024,2]
[367246109,1750713078917,-151.0,0.00024,14]
[367246110,1750713078927,-452.03672817,0.00024,2]
[367246111,1750713078936,-178.19317121,0.00024,7]
[367246112,1750713078945,-157.999999,0.00024,2]
[367246113,1750713078954,-11644.38585982,0.00024,2]
[367246114,1750713079089,-222.842108,0.00019229,2]
[367246115,1750713079198,150.0,0.00019623,30]
[367246116,1750713079266,150.0,0.00020557,30]
[367246117,1750713079300,150.0,0.00021491,30]
[367246118,1750713079336,167.78,0.00022426,30]
[367246119,1750713079406,-1640.59,0.00019227,3]
[367246120,1750713079416,-237.56183302,0.00019229,2]
[367246121,1750713079426,-226.75167514,0.0001941,2]
[367246122,1750713079435,-267.158322,0.00020588,2]
[367246123,1750713079445,-3281.18,0.00020597,3]
[367246124,1750713079454,-785.89961003,0.00021556,2]
[367246125,1750713079464,-26619.77658257,0.00024,2]
[367246126,1750713079478,-1000.0,0.00024,24]
[367246127,1750713079487,-2950.47,0.00024,2]
[367246128,1750713079497,-160.0,0.00024,7]
[367246129,1750713079507,-160.0,0.00024,7]
[367246130,1750713079517,-19356.9468956,0.00024,7]
[367246131,1750713079526,-72060.83,0.00024,2]
[367246132,1750713079535,-3000.0,0.00024,2]
[367246133,1750713079545,-1749.0,0.00024,3]
[367246134,1750713079556,-1749.0,0.00024,3]
[367246135,1750713079566,-1749.0,0.00024,3]
[367246136,1750713079576,-1657.8328387,0.00024,3]
[367246137,1750713079587,-91.1671613,0.00024,3]
[367246138,1750713079597,-397.95407477,0.00024,3]
[367246139,1750713079612,-1351.04592523,0.00024,3]
[367246140,1750713079622,-1749.0,0.00024,3]
[367246141,1750713079631,-1749.0,0.00024,3]
[367246142,1750713079641,-1000.0,0.00024,5]
[367246143,1750713079650,-1000.0,0.00024,5]
[367246144,1750713079660,-158.6,0.00024,2]
[367246145,1750713079669,-1000.0,0.00024,2]
[367246146,1750713079678,-10000.0,0.00024,7]
[367246147,1750713079688,-188.417302,0.00024,2]
[367246148,1750713079697,-230.18214666,0.00024,7]
[367246149,1750713079706,-160.0,0.00024,7]
[367246150,1750713079716,-640.0,0.00024,2]
[367246151,1750713079725,-1470.904,0.00024,2]
[367246152,1750713079734,-70.85062611,0.00024,7]
[367246153,1750713079746,-765.85033341,0.00024,7]
[367246154,1750713079756,-425.08510397,0.00024,7]
[367246155,1750713079765,-425.08510397,0.00024,3]
[367246156,1750713079775,-213.63163053,0.00024,3]
[367246157,1750713079784,-160.0,0.00024,7]
[367246158,1750713079793,-160.0,0.00024,3]
[367246159,1750713079802,-3758.27849114,0.00024003,10]
[367246160,1750713079811,-3000.0,0.0002401,2]
[367246161,1750713079821,-3000.0,0.0002402,2]
[367246162,1750713079830,-3000.0,0.0002403,2]
[367246163,1750713079840,-3000.0,0.0002404,2]
[367246164,1750713079849,-3000.0,0.0002405,2]
[367246165,1750713079859,-265.08641367,0.00024055,3]
[367246166,1750713079869,-3000.0,0.0002406,2]
[367246167,1750713079878,-450.0,0.00024068,2]
[367246168,1750713079887,-1500.0,0.00024068,2]
[367246169,1750713079896,-3000.0,0.0002407,2]
[367246170,1750713079906,-3000.0,0.0002408,2]
[367246171,1750713079915,-2000.0,0.00024088,3]
[367246172,1750713079924,-3000.0,0.0002409,2]
[367246173,1750713079933,-3000.0,0.000241,2]
[367246174,1750713079942,-500.0,0.00024109,2]
[367246175,1750713079952,-474.73,0.00024109,2]
[367246176,1750713079961,-474.73,0.00024109,2]
[367246177,1750713079971,-474.73,0.00024109,2]
[367246178,1750713079980,-474.73,0.00024109,2]
[367246179,1750713079990,-474.73,0.00024109,2]
[367246180,1750713079999,-474.73,0.00024109,2]
[367246181,1750713080008,-474.73,0.00024109,2]
[367246182,1750713080018,-474.73,0.00024109,2]
[367246183,1750713080027,-474.73,0.00024109,2]
[367246184,1750713080036,-474.73,0.00024109,2]
[367246185,1750713080046,-474.73,0.00024109,2]
[367246186,1750713080055,-474.73,0.00024109,2]
[367246187,1750713080065,-474.73,0.00024109,2]
[367246188,1750713080074,-474.73,0.00024109,2]
[367246189,1750713080083,-474.73,0.00024109,2]
[367246190,1750713080092,-474.73,0.00024109,2]
[367246191,1750713080102,-474.73,0.00024109,2]
[367246192,1750713080111,-474.73,0.00024109,2]
[367246193,1750713080120,-3000.0,0.0002411,2]
[367246194,1750713080129,-3000.0,0.0002412,2]
[367246195,1750713080139,-3000.0,0.0002413,2]
[367246196,1750713080148,-3000.0,0.0002414,2]
[367246197,1750713080158,-3000.0,0.0002415,2]
[367246198,1750713080167,-1917.77,0.00024152,2]
[367246199,1750713080177,-1996.47,0.00024152,2]
[367246200,1750713080186,-768.95,0.00024154,2]
[367246201,1750713080195,-499.06,0.00024154,2]
[367246202,1750713080205,-1326.42,0.00024154,2]
[367246203,1750713080214,-1916.14,0.00024154,2]
[367246204,1750713080224,-2981.58,0.00024154,2]
[367246205,1750713080233,-561.49,0.00024154,2]
[367246206,1750713080391,-998.87,0.00024154,2]
[367246207,1750713080401,-746.54,0.00024154,2]
[367246208,1750713080410,-1197.46,0.00024154,2]
[367246209,1750713080420,-868.07,0.00024154,2]
[367246210,1750713080430,-608.93,0.00024154,2]
[367246211,1750713080439,-3607.91,0.00024154,2]
[367246212,1750713080448,-1233.5,0.00024154,2]
[367246213,1750713080458,-852.78,0.00024154,2]
[367246214,1750713080471,-811.33,0.00024154,2]
[367246215,1750713080480,-460.0,0.00024154,2]
[367246216,1750713080490,-3000.0,0.0002416,2]
[367246217,1750713080499,-555.63,0.00024161,2]
[367246218,1750713080510,-834.36,0.00024161,2]
[367246219,1750713080519,-460.0,0.00024161,2]
[367246220,1750713080528,-460.0,0.00024161,2]
[367246221,1750713080538,-460.0,0.00024161,2]
[367246222,1750713080548,-460.0,0.00024161,2]
[367246223,1750713080558,-450.42350007,0.00024161,2]
[367246224,1750713080567,-1007.44,0.00024161,2]
[367246225,1750713080577,-460.0,0.00024161,2]
[367246226,1750713080587,-778.84,0.00024161,2]
[367246227,1750713080596,-691.92,0.00024161,2]
[367246228,1750713080606,-681.31,0.00024161,2]
[367246229,1750713080615,-673.85,0.00024161,2]
[367246230,1750713080624,-688.21,0.00024161,2]
[367246231,1750713080634,-460.0,0.00024161,2]
[367246232,1750713080643,-460.0,0.00024161,2]
[367246233,1750713080653,-611.84,0.00024161,2]
[367246234,1750713080663,-1114.83,0.00024161,2]
[367246235,1750713080672,-872.33,0.00024161,2]
[367246236,1750713080682,-460.0,0.00024161,2]
[367246237,1750713080692,-648.26,0.00024161,2]
[367246238,1750713080702,-474.73,0.00024161,2]
[367246239,1750713080711,-1112.93,0.00024161,2]
[367246240,1750713080720,-460.0,0.00024164,2]
[367246241,1750713080730,-1763.36,0.00024164,2]
[367246242,1750713080739,-735.83,0.00024164,2]
[367246243,1750713080748,-6806.59,0.00024164,2]
[367246244,1750713080758,-1456.91,0.00024164,2]
[367246245,1750713080767,-1053.14,0.00024164,2]
[367246246,1750713080776,-799.06,0.00024164,2]
[367246247,1750713080785,-460.0,0.00024164,2]
[367246248,1750713080795,-1090.77,0.00024164,2]
[367246249,1750713080804,-938.86,0.00024164,2]
[367246250,1750713080814,-2416.82,0.00024164,2]
[367246251,1750713080824,-951.38,0.00024164,2]
[367246252,1750713080833,-564.51,0.00024164,2]
[367246253,1750713080842,-167.0,0.00024164,7]
[367246254,1750713080855,-2500.0,0.00024164,2]
[367246255,1750713080864,-930.53289031,0.00024164,2]
[367246256,1750713080873,-2500.0,0.00024164,2]
[367246257,1750713080882,-2500.0,0.00024164,2]
[367246258,1750713080891,-3000.0,0.00024164,2]
[367246259,1750713080901,-1503.02477531,0.00024164,2]
[367246260,1750713080911,-460.0,0.00024165,2]
[367246261,1750713080920,-460.0,0.00024165,2]
[367246262,1750713080930,-263.36787625,0.00024165,2]
[367246263,1750713080939,-638.1,0.00024165,2]
[367246264,1750713080948,-460.0,0.00024165,2]
[367246265,1750713080957,-741.03,0.00024165,2]
[367246266,1750713080966,-749.26,0.00024165,2]
[367246267,1750713080975,-526.39,0.00024165,2]
[367246268,1750713080984,-2964.55,0.00024165,2]
[367246269,1750713080993,-460.0,0.00024165,2]
[367246270,1750713081002,-2045.16,0.00024165,2]
[367246271,1750713081011,-476.44,0.00024165,2]
[367246272,1750713081021,-610.23,0.00024165,2]
[367246273,1750713081030,-3382.79,0.00024165,2]
[367246274,1750713081040,-588.75,0.00024165,2]
[367246275,1750713081049,-2795.99,0.00024165,2]
[367246276,1750713081058,-1238.41,0.00024165,2]
[367246277,1750713081067,-200.0,0.00024168,2]
[367246278,1750713081076,-757.95,0.00024168,2]
[367246279,1750713081086,-468.15,0.00024168,2]
[367246280,1750713081095,-472.41,0.00024168,2]
[367246281,1750713081104,-696.67,0.00024168,2]
[367246282,1750713081113,-632.2,0.00024168,2]
[367246283,1750713081122,-3000.0,0.0002417,2]
[367246284,1750713081131,-195.2105178,0.00024176,2]
[367246285,1750713081141,-460.0,0.00024177,2]
[367246286,1750713081150,-460.0,0.00024177,2]
[367246287,1750713081159,-3000.0,0.0002418,2]
[367246288,1750713081168,-3000.0,0.0002419,2]
[367246289,1750713081178,-3000.0,0.000242,2]
[367246290,1750713081187,-5000.0,0.00024204,2]
[367246291,1750713081197,-3000.0,0.0002421,2]
[367246292,1750713081207,-3000.0,0.0002422,2]
[367246293,1750713081217,-669.7,0.00024225,6]
[367246294,1750713081227,-3000.0,0.0002423,2]
[367246295,1750713081236,-3000.0,0.0002424,2]
[367246296,1750713081246,-160.0,0.00024242,2]
[367246297,1750713081255,-3758.27849114,0.00024245,10]
[367246298,1750713081264,-3000.0,0.0002425,2]
[367246299,1750713081274,-3000.0,0.0002426,2]
[367246300,1750713081283,-3000.0,0.0002427,2]
[367246301,1750713081292,-3000.0,0.0002428,2]
[367246302,1750713081301,-2000.0,0.00024289,3]
[367246303,1750713081310,-3000.0,0.0002429,2]
[367246304,1750713081320,-3834.36,0.000243,7]
[367246305,1750713081329,-9048.01,0.000243,7]
[367246306,1750713081338,-500.0,0.00024383,14]
[367246307,1750713081348,-1917.77,0.00024426,2]
[367246308,1750713081358,-1996.47,0.00024426,2]
[367246309,1750713081367,-768.95,0.00024428,2]
[367246310,1750713081377,-499.06,0.00024428,2]
[367246311,1750713081386,-1326.42,0.00024428,2]
[367246312,1750713081395,-1916.14,0.00024428,2]
[367246313,1750713081405,-2981.58,0.00024428,2]
[367246314,1750713081415,-561.49,0.00024428,2]
[367246315,1750713081424,-998.87,0.00024428,2]
[367246316,1750713081434,-746.54,0.00024428,2]
[367246317,1750713081443,-1197.46,0.00024428,2]
[367246318,1750713081452,-868.07,0.00024428,2]
[367246319,1750713081461,-608.93,0.00024428,2]
[367246320,1750713081474,-3607.91,0.00024428,2]
[367246321,1750713081483,-1233.5,0.00024428,2]
[367246322,1750713081494,-852.78,0.00024428,2]
[367246323,1750713081505,-811.33,0.00024428,2]
[367246324,1750713081515,-460.0,0.00024428,2]
[367246325,1750713081527,-555.63,0.00024435,2]
[367246326,1750713081537,-834.36,0.00024435,2]
[367246327,1750713081549,-460.0,0.00024435,2]
[367246328,1750713081561,-160.07445785,0.00024435,2]
[367246329,1750713081570,-460.0,0.00024435,2]
[367246330,1750713081579,-460.0,0.00024435,2]
[367246331,1750713081589,-1007.44,0.00024435,2]
[367246332,1750713081599,-460.0,0.00024435,2]
[367246333,1750713081609,-778.84,0.00024435,2]
[367246334,1750713081618,-691.92,0.00024435,2]
[367246335,1750713081627,-681.31,0.00024435,2]
[367246336,1750713081637,-673.85,0.00024435,2]
[367246337,1750713081646,-688.21,0.00024435,2]
[367246338,1750713081654,-460.0,0.00024435,2]
[367246339,1750713081664,-460.0,0.00024435,2]
[367246340,1750713081674,-611.84,0.00024435,2]
[367246341,1750713081683,-1114.83,0.00024435,2]
[367246342,1750713081692,-872.33,0.00024435,2]
[367246343,1750713081702,-460.0,0.00024435,2]
[367246344,1750713081711,-648.26,0.00024435,2]
[367246345,1750713081720,-474.73,0.00024435,2]
[367246346,1750713081730,-1112.93,0.00024435,2]
[367246347,1750713081739,-400.80720294,0.00024438,2]
[367246348,1750713081748,-1763.36,0.00024438,2]
[367246349,1750713081757,-735.83,0.00024438,2]
[367246350,1750713081768,-6806.59,0.00024438,2]
[367246351,1750713081777,-1456.91,0.00024438,2]
[367246352,1750713081787,-1053.14,0.00024438,2]
[367246353,1750713081795,-799.06,0.00024438,2]
[367246354,1750713081804,-460.0,0.00024438,2]
[367246355,1750713081813,-1090.77,0.00024438,2]
[367246356,1750713081823,-938.86,0.00024438,2]
[367246357,1750713081832,-2416.82,0.00024438,2]
[367246358,1750713081842,-951.38,0.00024438,2]
[367246359,1750713081852,-564.51,0.00024438,2]
[367246360,1750713081861,-460.0,0.00024439,2]
[367246361,1750713081870,-460.0,0.00024439,2]
[367246362,1750713081879,-638.1,0.00024439,2]
[367246363,1750713081888,-460.0,0.00024439,2]
[367246364,1750713081897,-741.03,0.00024439,2]
[367246365,1750713081906,-749.26,0.00024439,2]
[367246366,1750713081915,-526.39,0.00024439,2]
[367246367,1750713081924,-2964.55,0.00024439,2]
[367246368,1750713081934,-460.0,0.00024439,2]
[367246369,1750713081943,-2045.16,0.00024439,2]
[367246370,1750713081952,-476.44,0.00024439,2]
[367246371,1750713081961,-610.23,0.00024439,2]
[367246372,1750713081970,-3382.79,0.00024439,2]
[367246373,1750713081980,-588.75,0.00024439,2]
[367246374,1750713081989,-2795.99,0.00024439,2]
[367246375,1750713081998,-1238.41,0.00024439,2]
[367246376,1750713082008,-200.0,0.00024442,2]
[367246377,1750713082017,-757.95,0.00024442,2]
[367246378,1750713082026,-468.15,0.00024442,2]
[367246379,1750713082036,-472.41,0.00024442,2]
[367246380,1750713082045,-696.67,0.00024442,2]
[367246381,1750713082054,-632.2,0.00024442,2]
[367246382,1750713082063,-8680.42014708,0.00024442,2]
[367246383,1750713082072,-245.45014588,0.00024451,2]
[367246384,1750713082082,-460.0,0.00024451,2]
[367246385,1750713082091,-336.879334,0.00024461,2]
[367246386,1750713082101,-3758.27849114,0.00024486,11]
[367246387,1750713082110,-502.21688608,0.000245,30]
[367246388,1750713082119,-200.0,0.000245,2]
[367246389,1750713082128,-669.7,0.00024513,6]
[367246390,1750713082137,-250.0,0.00024521,2]
[367246391,1750713082146,-1000.0,0.00024528,3]
[367246392,1750713082156,-600.0,0.00024544,2]
[367246393,1750713082165,-150.0,0.00024558,2]
[367246394,1750713082174,-150.0,0.00024558,2]
[367246395,1750713082183,-150.0,0.00024558,2]
[367246396,1750713082192,-150.0,0.00024558,2]
[367246397,1750713082201,-150.0,0.00024558,2]
[367246398,1750713082210,-150.0,0.00024558,2]
[367246399,1750713082219,-150.0,0.00024558,2]
[367246400,1750713082229,-965.0,0.00024558,2]
[367246401,1750713082238,-41138.90231736,0.00024568,2]
[367246402,1750713082248,-600.0,0.00024591,2]
[367246403,1750713082257,-500.0,0.00024599,2]
[367246404,1750713082266,-2000.0,0.00024611,3]
[367246405,1750713082276,-600.0,0.00024616,2]
[367246406,1750713082285,-266.35310527,0.00024616,2]
[367246407,1750713082294,-500.0,0.00024639,2]
[367246408,1750713082304,-293.85068442,0.00024645,2]
[367246409,1750713082313,-300.56288983,0.0002465,2]
[367246410,1750713082322,-200.0123441,0.0002465,2]
[367246411,1750713082331,-382.59,0.0002465,30]
[367246412,1750713082340,-9716.22995683,0.0002465,2]
[367246413,1750713082350,-3619.82991166,0.0002465,2]
[367246414,1750713082360,-33508.19658589,0.0002465,7]
[367246415,1750713082370,-434.88,0.00024657,4]
[367246416,1750713082379,-434.88,0.00024657,4]
[367246417,1750713082388,-434.88,0.00024657,4]
[367246418,1750713082398,-434.88,0.00024657,4]
[367246419,1750713082407,-434.88,0.00024657,4]
[367246420,1750713082418,-434.88,0.00024657,4]
[367246421,1750713082427,-434.88,0.00024657,4]
[367246422,1750713082438,-434.88,0.00024657,4]
[367246423,1750713082449,-434.88,0.00024657,4]
[367246424,1750713082459,-434.88,0.00024657,4]
[367246425,1750713082471,-434.88,0.00024657,4]
[367246426,1750713082483,-434.88,0.00024657,4]
[367246427,1750713082492,-434.88,0.00024657,4]
[367246428,1750713082502,-434.88,0.00024657,4]
[367246429,1750713082512,-434.88,0.00024657,4]
[367246430,1750713082522,-434.88,0.00024657,4]
[367246431,1750713082531,-434.88,0.00024657,4]
[367246432,1750713082540,-434.88,0.00024657,4]
[367246433,1750713082549,-434.88,0.00024657,4]
[367246434,1750713082558,-434.88,0.00024657,4]
[367246435,1750713082567,-500.0,0.00024657,2]
[367246436,1750713082577,-150.0,0.00024658,2]
[367246437,1750713082586,-1000.0,0.00024658,2]
[367246438,1750713082595,-1000.0,0.00024658,2]
[367246439,1750713082605,-1000.0,0.00024658,2]
[367246440,1750713082614,-1000.0,0.00024658,2]
[367246441,1750713082623,-1000.0,0.00024658,2]
[367246442,1750713082632,-1000.0,0.00024658,2]
[367246443,1750713082642,-1000.0,0.00024658,2]
[367246444,1750713082651,-1000.0,0.00024658,2]
[367246445,1750713082660,-1000.0,0.00024658,2]
[367246446,1750713082670,-1000.0,0.00024658,2]
[367246447,1750713082679,-1000.0,0.00024658,2]
[367246448,1750713082688,-1000.0,0.00024658,2]
[367246449,1750713082698,-1000.0,0.00024658,2]
[367246450,1750713082708,-1000.0,0.00024658,2]
[367246451,1750713082718,-1000.0,0.00024658,2]
[367246452,1750713082728,-1000.0,0.00024658,2]
[367246453,1750713082738,-1000.0,0.00024658,2]
[367246454,1750713082749,-1000.0,0.00024658,2]
[367246455,1750713082758,-1000.0,0.00024658,2]
[367246456,1750713082767,-1000.0,0.00024658,2]
[367246457,1750713082776,-1000.0,0.00024658,2]
[367246458,1750713082785,-1000.0,0.00024658,2]
[367246459,1750713082794,-1000.0,0.00024658,2]
[367246460,1750713082803,-1000.0,0.00024658,2]
[367246461,1750713082812,-1000.0,0.00024658,2]
[367246462,1750713082822,-647.0,0.00024658,2]